fUST/lending_fUST_20240630
["ID","MTS","AMOUNT","RATE_DAILY","PERIOD"]
[330656616,1719694243691,-502.67918064,0.00016943,2]
[330656618,1719694243700,-486.12695347,0.00016943,2]
[330656620,1719694243709,-501.18750972,0.00016943,2]
[330656622,1719694243718,-500.89298118,0.00016943,2]
[330656624,1719694243727,-500.0,0.00016943,2]
[330656626,1719694243736,-500.0,0.00016943,2]
[330656628,1719694243745,-500.0,0.00016943,2]
[330656630,1719694243754,-500.0,0.00016943,2]
[330656631,1719694243763,-704.58,0.00016943,2]
[330656632,1719694243773,-502.61957999,0.00016943,2]
[330656633,1719694243782,-500.0,0.00016943,2]
[330656634,1719694243791,-500.0,0.00016943,2]
[330656635,1719694243801,-501.54955489,0.00016943,2]
[330656636,1719694243810,-500.0,0.00016943,2]
[330656637,1719694243819,-500.0,0.00016943,2]
[330656638,1719694243828,-500.0,0.00016943,2]
[330656639,1719694243838,-500.0,0.00016943,2]
[330656640,1719694243847,-500.0,0.00016943,2]
[330656641,1719694243856,-500.0,0.00016943,2]
[330656642,1719694243865,-151.0,0.00016943,2]
[330656643,1719694243876,-151.0,0.00016943,2]
[330656644,1719694243885,-500.0,0.00016943,2]
[330656645,1719694243894,-500.0,0.00016943,2]
[330656646,1719694243904,-2868.63,0.00016943,2]
[330656647,1719694243913,-710.22,0.00016944,2]
[330656648,1719694243923,-500.0,0.00016944,2]
[330656649,1719694243932,-500.0,0.00016944,2]
[330656650,1719694243941,-500.0,0.00016944,2]
[330656651,1719694243951,-500.0,0.00016944,2]
[330656652,1719694243959,-500.0,0.00016944,2]
[330656653,1719694243968,-500.0,0.00016944,2]
[330656654,1719694243977,-500.0,0.00016944,2]
[330656655,1719694243986,-500.0,0.00016944,2]
[330656656,1719694243995,-500.0,0.00016944,2]
[330656657,1719694244004,-500.0,0.00016944,2]
[330656658,1719694244014,-500.0,0.00016944,2]
[330656659,1719694244023,-501.99860735,0.00016944,2]
[330656660,1719694244032,-500.0,0.00016944,2]
[330656661,1719694244041,-501.78231271,0.00016944,2]
[330656662,1719694244050,-500.0,0.00016944,2]
[330656663,1719694244059,-891.89,0.00016944,2]
[330656664,1719694244068,-500.0,0.00016944,2]
[330656665,1719694244077,-1910.58,0.00016944,2]
[330656666,1719694244086,-500.0,0.00016944,2]
[330656667,1719694244097,-502.60857858,0.00016944,2]
[330656668,1719694244111,-500.0,0.00016944,2]
[330656669,1719694244121,-500.0,0.00016944,2]
[330656670,1719694244130,-501.84016444,0.00016944,2]
[330656671,1719694244139,-500.0,0.00016944,2]
[330656672,1719694244150,-1009.61,0.00016944,2]
[330656673,1719694244159,-514.12258312,0.00016944,2]
[330656674,1719694244167,-1000.0,0.00016944,2]
[330656675,1719694244177,-504.17035363,0.00016944,2]
[330656676,1719694244188,-501.39262462,0.00016944,2]
[330656677,1719694244197,-500.0,0.00016944,2]
[330656678,1719694244206,-500.0,0.00016944,2]
[330656679,1719694244215,-500.0,0.00016944,2]
[330656680,1719694244224,-500.0,0.00016944,2]
[330656681,1719694244234,-500.0,0.00016944,2]
[330656682,1719694244243,-500.0,0.00016944,2]
[330656683,1719694244251,-235.35761024,0.00016944,2]
[330656684,1719694244259,-500.0,0.00016944,2]
[330656685,1719694244268,-500.0,0.00016944,2]
[330656686,1719694244277,-500.0,0.00016944,2]
[330656687,1719694244286,-503.0054815,0.00016944,2]
[330656688,1719694244295,-500.0,0.00016944,2]
[330656689,1719694244304,-647.19,0.00016944,2]
[330656690,1719694244313,-500.0,0.00016944,2]
[330656691,1719694244322,-233.23839383,0.00016944,2]
[330656692,1719694244331,-501.19645466,0.00016944,2]
[330656693,1719694244340,-500.0,0.00016944,2]
[330656694,1719694244349,-500.0,0.00016944,2]
[330656695,1719694244358,-399.32131195,0.00016944,2]
[330656696,1719694244367,-500.0,0.00016944,2]
[330656697,1719694244377,-500.0,0.00016944,2]
[330656698,1719694244386,-500.0,0.00016944,2]
[330656699,1719694244395,-500.0,0.00016944,2]
[330656700,1719694244404,-212.51315314,0.00016944,2]
[330656701,1719694244414,-500.0,0.00016944,2]
[330656702,1719694244423,-500.64113332,0.00016944,2]
[330656703,1719694244433,-500.0,0.00016944,2]
[330656704,1719694244442,-500.0,0.00016944,2]
[330656705,1719694244451,-500.0,0.00016944,2]
[330656706,1719694244460,-500.0,0.00016944,2]
[330656707,1719694244469,-500.0,0.00016944,2]
[330656708,1719694244478,-547.82,0.00016944,2]
[330656709,1719694244487,-500.0,0.00016944,2]
[330656710,1719694244496,-594.02498517,0.00016944,2]
[330656711,1719694244505,-500.0,0.00016944,2]
[330656712,1719694244514,-500.0,0.00016944,2]
[330656713,1719694244523,-500.0,0.00016944,2]
[330656714,1719694244533,-500.0,0.00016944,2]
[330656715,1719694244542,-500.0,0.00016944,2]
[330656716,1719694244551,-500.0,0.00016944,2]
[330656717,1719694244560,-559.26,0.00016944,2]
[330656718,1719694244569,-500.0,0.00016944,2]
[330656719,1719694244579,-500.0,0.00016944,2]
[330656720,1719694244588,-546.41,0.00016944,2]
[330656721,1719694244597,-500.0,0.00016944,2]
[330656722,1719694244606,-500.0,0.00016944,2]
[330656723,1719694244616,-525.33,0.00016944,2]
[330656724,1719694244625,-500.0,0.00016944,2]
[330656726,1719694244635,-500.0,0.00016944,2]
[330656727,1719694244644,-500.0,0.00016944,2]
[330656729,1719694244653,-500.0,0.00016944,2]
[330656741,1719694244739,-500.0,0.00016944,2]
[330656743,1719694244758,-503.24646411,0.00016944,2]
[330656744,1719694244767,-500.0,0.00016944,2]
[330656745,1719694244776,-475.60655869,0.00016944,2]
[330656746,1719694244786,-500.0,0.00016944,2]
[330656747,1719694244794,-500.0,0.00016944,2]
[330656748,1719694244803,-500.0,0.00016944,2]
[330656749,1719694244814,-500.0,0.00016944,2]
[330656750,1719694244823,-1450.8,0.00016944,2]
[330656751,1719694244832,-306.96994833,0.00016944,2]
[330656752,1719694244841,-1032.0,0.00016944,2]
[330656753,1719694244850,-827.1,0.00016944,2]
[330656754,1719694244860,-556.35,0.00016944,2]
[330656755,1719694244870,-500.0,0.00016944,2]
[330656756,1719694244880,-507.65970843,0.00016944,2]
[330656757,1719694244889,-500.0,0.00016944,2]
[330656758,1719694244901,-500.0,0.00016944,2]
[330656759,1719694244911,-500.0,0.00016944,2]
[330656760,1719694244920,-534.85,0.00016944,2]
[330656761,1719694244929,-761.21,0.00016944,2]
[330656762,1719694244939,-500.0,0.00016944,2]
[330656763,1719694244948,-500.0,0.00016944,2]
[330656764,1719694244957,-3366.55,0.00016944,2]
[330656765,1719694244966,-743.37,0.00016944,2]
[330656766,1719694244976,-500.0,0.00016944,2]
[330656767,1719694244986,-500.0,0.00016944,2]
[330656768,1719694244995,-394.3736668,0.00016944,2]
[330656769,1719694245005,-558.46,0.00016944,2]
[330656770,1719694245014,-500.0,0.00016944,2]
[330656771,1719694245024,-500.0,0.00016944,2]
[330656772,1719694245033,-500.0,0.00016944,2]
[330656773,1719694245043,-500.0,0.00016944,2]
[330656774,1719694245052,-676.51,0.00016944,2]
[330656775,1719694245061,-316.863127,0.00016944,2]
[330656776,1719694245071,-316.863127,0.00016944,2]
[330656777,1719694245080,-1093.75,0.00016944,2]
[330656778,1719694245089,-316.863127,0.00016944,2]
[330656779,1719694245098,-316.863127,0.00016944,2]
[330656780,1719694245112,-500.0,0.00016944,2]
[330656781,1719694245121,-500.0,0.00016944,2]
[330656782,1719694245132,-510.339056,0.00016944,2]
[330656783,1719694245141,-500.0,0.00016944,2]
[330656784,1719694245154,-500.58786215,0.00016944,2]
[330656785,1719694245163,-508.78307288,0.00016944,2]
[330656787,1719694245172,-500.0,0.00016944,2]
[330656789,1719694245183,-500.0,0.00016944,2]
[330656791,1719694245192,-500.0,0.00016944,2]
[330656792,1719694245202,-501.47082297,0.00016944,2]
[330656793,1719694245211,-500.0,0.00016944,2]
[330656794,1719694245220,-157.58253034,0.00016944,2]
[330656795,1719694245229,-500.0,0.00016944,2]
[330656796,1719694245239,-448.3178706,0.00016944,2]
[330656797,1719694245249,-526.20628414,0.00016944,2]
[330656798,1719694245258,-558.43315913,0.00016944,2]
[330656799,1719694245267,-500.0,0.00016944,2]
[330656800,1719694245276,-501.63037227,0.00016944,2]
[330656801,1719694245285,-239.95828341,0.00016944,2]
[330656802,1719694245306,-260.04171659,0.00016944,2]
[330656803,1719694245315,-500.0,0.00016944,2]
[330656805,1719694245325,-500.0,0.00016944,2]
[330656807,1719694245335,-500.0,0.00016944,2]
[330656809,1719694245344,-500.0,0.00016944,2]
[330656811,1719694245353,-500.0,0.00016944,2]
[330656813,1719694245363,-500.0,0.00016944,2]
[330656815,1719694245372,-501.56843506,0.00016944,2]
[330656817,1719694245381,-500.0,0.00016944,2]
[330656819,1719694245390,-505.44340575,0.00016944,2]
[330656821,1719694245399,-500.0,0.00016944,2]
[330656823,1719694245408,-500.0,0.00016944,2]
[330656825,1719694245417,-500.0,0.00016944,2]
[330656827,1719694245426,-500.0,0.00016944,2]
[330656829,1719694245435,-500.0,0.00016944,2]
[330656831,1719694245444,-1159.68,0.00016944,2]
[330656833,1719694245453,-500.0,0.00016944,2]
[330656835,1719694245463,-2382.19,0.00016944,2]
[330656837,1719694245472,-1852.2,0.00016944,2]
[330656839,1719694245482,-744.14,0.00016944,2]
[330656841,1719694245491,-151.0,0.00016944,2]
[330656843,1719694245500,-500.0,0.00016944,2]
[330656845,1719694245510,-151.0,0.00016944,2]
[330656847,1719694245519,-907.27,0.00016944,2]
[330656849,1719694245529,-996.11,0.00016944,2]
[330656851,1719694245538,-3030.18,0.00016944,2]
[330656853,1719694245547,-500.0,0.00016944,2]
[330656855,1719694245556,-280.66475558,0.00016944,2]
[330656857,1719694245565,-534.89,0.00016944,2]
[330656859,1719694245575,-500.0,0.00016944,2]
[330656861,1719694245584,-500.0,0.00016944,2]
[330656863,1719694245593,-500.0,0.00016944,2]
[330656865,1719694245602,-560.91,0.00016944,2]
[330656867,1719694245611,-500.0,0.00016944,2]
[330656869,1719694245620,-981.4,0.00016944,2]
[330656871,1719694245630,-500.0,0.00016944,2]
[330656873,1719694245638,-500.0,0.00016946,2]
[330656875,1719694245647,-500.0,0.00016947,2]
[330656877,1719694245656,-500.0,0.00016947,2]
[330656879,1719694245665,-500.0,0.00016947,2]
[330656881,1719694245674,-500.0,0.00016947,2]
[330656883,1719694245683,-500.0,0.00016947,2]
[330656884,1719694245692,-1598.61,0.00016947,2]
[330656887,1719694245701,-502.87,0.00016947,2]
[330656889,1719694245711,-500.0,0.00016947,2]
[330656891,1719694245720,-500.0,0.00016947,2]
[330656892,1719694245729,-2157.46,0.00016947,2]
[330656895,1719694245738,-526.75,0.00016947,2]
[330656897,1719694245748,-1641.47,0.00016947,2]
[330656899,1719694245757,-2874.79,0.00016947,2]
[330656901,1719694245767,-1106.7,0.00016947,2]
[330656903,1719694245776,-757.4,0.00016947,2]
[330656904,1719694245785,-901.4,0.00016947,2]
[330656906,1719694245794,-693.42,0.00016947,2]
[330656908,1719694245803,-500.0,0.00016947,2]
[330656910,1719694245812,-500.0,0.00016947,2]
[330656912,1719694245821,-500.0,0.00016947,2]
[330656915,1719694245831,-256.14085539,0.00016947,2]
[330656971,1719694246572,-500.0,0.0001682,2]
[330656972,1719694246583,-1599.62,0.00016893,2]
[330656974,1719694246593,-500.0,0.00016893,2]
[330656975,1719694246603,-500.0,0.00016895,2]
[330656977,1719694246613,-500.0,0.00016944,2]
[330656979,1719694246624,-464.07914461,0.00016947,2]
[330656981,1719694246635,-151.0,0.00016947,2]
[330656983,1719694246648,-151.0,0.00016947,2]
[330656986,1719694246658,-1024.48,0.00016947,2]
[330656988,1719694246667,-2868.63,0.00016947,2]
[330656990,1719694246677,-10625.7120332,0.00016948,7]
[330656992,1719694246687,-31193.61,0.00016948,2]
[330656994,1719694246696,-903.46,0.00016948,2]
[330656996,1719694246706,-500.0,0.00016948,2]
[330656998,1719694246716,-938.61,0.00016948,2]
[330657000,1719694246725,-919.57,0.00016948,2]
[330657002,1719694246735,-316.863127,0.00016948,2]
[330657004,1719694246745,-316.863127,0.00016948,2]
[330657006,1719694246755,-402.13362124,0.00016948,2]
[330657008,1719694246764,-2298.64,0.00016948,2]
[330657010,1719694246774,-3709.88,0.00016948,2]
[330657012,1719694246783,-10503.29002775,0.00016948,2]
[330657015,1719694246800,-3038.73997225,0.00016948,2]
[330657017,1719694246810,-516.31604977,0.00016948,2]
[330657019,1719694246820,-2884.22,0.00016948,2]
[330657021,1719694246830,-500.0,0.00016948,2]
[330657023,1719694246839,-151.0,0.00016948,2]
[330657026,1719694246849,-151.0,0.00016948,2]
[330657029,1719694246858,-2218.28,0.00016948,2]
[330657031,1719694246868,-2038.48562426,0.00016948,2]
[330657063,1719694247197,-4970.30396367,0.00016948,2]
[330657073,1719694247275,-2970.0,0.00016948,2]
[330657075,1719694247287,-16979.84041207,0.00016948,2]
[330657077,1719694247297,-2162.63,0.00016948,2]
[330657079,1719694247307,-2868.63,0.00016949,2]
[330657081,1719694247317,-316.863127,0.0001695,2]
[330657083,1719694247326,-316.863127,0.0001695,2]
[330657085,1719694247335,-2868.63,0.0001695,2]
[330657087,1719694247346,-150.683,0.00016968,2]
[330657089,1719694247355,-773.0,0.00016968,2]
[330657091,1719694247366,-493.93828443,0.00017,2]
[330657093,1719694247376,-1000.0,0.00017,5]
[330657095,1719694247386,-195.1389909,0.00017,2]
[330657097,1719694247395,-153.0,0.00017,2]
[330657099,1719694247405,-153.0,0.00017,2]
[330657101,1719694247415,-153.0,0.00017,2]
[330657103,1719694247424,-153.0,0.00017,2]
[330657105,1719694247434,-153.0,0.00017,2]
[330657107,1719694247443,-153.0,0.00017,2]
[330657109,1719694247452,-153.0,0.00017,2]
[330657111,1719694247462,-153.0,0.00017,2]
[330657113,1719694247471,-153.0,0.00017,2]
[330657116,1719694247481,-153.0,0.00017,2]
[330657118,1719694247491,-153.0,0.00017,2]
[330657120,1719694247500,-205.9490316,0.00017,2]
[330657122,1719694247510,-205.9490316,0.00017,2]
[330657124,1719694247520,-153.0,0.00017,2]
[330657126,1719694247529,-153.0,0.00017,2]
[330657128,1719694247539,-153.0,0.00017,2]
[330657130,1719694247548,-208.3591253,0.00017,2]
[330657132,1719694247558,-153.0,0.00017,2]
[330657134,1719694247567,-153.0,0.00017,2]
[330657136,1719694247577,-153.0,0.00017,2]
[330657138,1719694247586,-153.0,0.00017,2]
[330657140,1719694247595,-153.0,0.00017,2]
[330657142,1719694247606,-153.0,0.00017,2]
[330657144,1719694247615,-153.0,0.00017,2]
[330657146,1719694247624,-153.0,0.00017,2]
[330657148,1719694247634,-153.0,0.00017,2]
[330657150,1719694247644,-153.0,0.00017,2]
[330657152,1719694247653,-153.0,0.00017,2]
[330657154,1719694247663,-153.0,0.00017,2]
[330657156,1719694247672,-153.0,0.00017,2]
[330657158,1719694247682,-373.7094763,0.00017,2]
[330657161,1719694247692,-211.249,0.00017086,2]
[330657163,1719694247701,-235.629,0.00017086,2]
[330657165,1719694247710,-153.0,0.00017096,2]
[330657167,1719694247719,-153.0,0.000171,2]
[330657169,1719694247732,-500.0,0.00017364,2]
[330657183,1719694247850,-500.0,0.00017364,2]
[330657185,1719694247861,-10258.32,0.00017365,2]
[330657187,1719694247870,-599.05,0.00017365,2]
[330657189,1719694247881,-2997.04,0.00017365,2]
[330657191,1719694247890,-8026.09,0.00017365,2]
[330657192,1719694247901,-935.23,0.00017365,2]
[330657193,1719694247911,-500.0,0.00017368,2]
[330657194,1719694247921,-641.33,0.00017368,2]
[330657195,1719694247930,-500.0,0.00017368,2]
[330657196,1719694247940,-500.0,0.00017368,2]
[330657197,1719694247949,-893.91,0.00017368,2]
[330657198,1719694247959,-500.0,0.00017368,2]
[330657199,1719694247968,-500.0,0.00017368,2]
[330657200,1719694247977,-377.64447691,0.00017368,2]
[330657201,1719694247986,-151.0,0.00017368,2]
[330657202,1719694247995,-500.0,0.00017368,2]
[330657203,1719694248005,-151.0,0.00017368,2]
[330657204,1719694248014,-62188.71,0.00017368,2]
[330657205,1719694248024,-677.46,0.00017368,2]
[330657206,1719694248033,-512.21873744,0.00017368,2]
[330657207,1719694248043,-2665.21,0.00017368,2]
[330657208,1719694248052,-1216.46,0.00017368,2]
[330657209,1719694248062,-500.0,0.00017368,2]
[330657210,1719694248071,-9001.89120843,0.00017368,2]
[330657226,1719694248309,-473.77261029,0.00017368,2]
[330658018,1719694404320,569.40487912,0.00014999,2]
[330658019,1719694477022,294.67476711,0.00014999,2]
[330658023,1719694843434,19351.9714729,0.00014999,2]
[330658024,1719694851922,2099.40710865,0.00014999,2]
[330658025,1719694852848,16190.30006618,0.00014999,2]
[330658026,1719694861315,154.98158415,0.00014999,2]
[330658027,1719694865644,9606.64079942,0.00014998,2]
[330658028,1719694868016,181.45676091,0.00014999,2]
[330658029,1719694873844,155.14597482,0.00014999,2]
[330658030,1719694884632,9608.11079055,0.00014998,2]
[330658032,1719694908057,500.0,0.00015,2]
[330658033,1719694916925,3247.80021622,0.00014999,2]
[330658034,1719694957475,10583.42713572,0.00014999,2]
[330658035,1719694990270,1487.40194776,0.00014999,2]
[330658038,1719695033475,1118.17178868,0.00014999,2]
[330658039,1719695038681,9608.11079055,0.00014998,2]
[330658040,1719695054850,524.11142247,0.00014999,2]
[330658042,1719695085467,1374.81809454,0.00014999,2]
[330658043,1719695087861,528.76178297,0.00014999,2]
[330658044,1719695095322,932.60140374,0.00014999,2]
[330658045,1719695095495,2129.54772975,0.00014999,2]
[330658048,1719695113620,155.00100558,0.00014999,2]
[330658049,1719695113937,3712.01499901,0.00014999,2]
[330658050,1719695114077,275.2362278,0.00014999,2]
[330658051,1719695123829,250.38245708,0.00014999,2]
[330658053,1719695139452,214.67086582,0.00014999,2]
[330658054,1719695148091,157.20552492,0.00014999,2]
[330658056,1719695156482,1118.17178868,0.00014999,2]
[330658057,1719695167456,506.11,0.00010959,2]
[330658058,1719695177979,191.71,0.00010959,2]
[330658059,1719695188696,159.76,0.00010959,2]
[330658060,1719695199213,276.4,0.00010959,2]
[330658063,1719695204356,154.99858886,0.00014999,2]
[330658064,1719695209739,230.33,0.00010959,2]
[330658065,1719695209874,3074.84022806,0.00014999,2]
[330658066,1719695213644,2513.54969503,0.00014999,2]
[330658067,1719695217360,668.15518255,0.00013283,2]
[330658068,1719695220489,191.95,0.00010959,2]
[330658069,1719695221713,403.21401882,0.00014999,2]
[330658070,1719695231011,159.95,0.00010959,2]
[330658071,1719695241751,799.8,0.00010959,2]
[330658072,1719695268888,283.15650183,0.00014999,2]
[330658073,1719695272251,597.45420845,0.00014999,2]
[330658074,1719695278149,531.32438802,0.00013283,2]
[330658077,1719695353683,-682.39794615,0.00015709,2]
[330658337,1719695440113,-136.70204775,0.00015709,2]
[330658338,1719695440125,-491.60986908,0.00015995,2]
[330658340,1719695440135,-500.0,0.00016,2]
[330658343,1719695440145,-2000.0,0.00016716,2]
[330658344,1719695440154,-500.0,0.00016812,2]
[330658345,1719695440164,-500.0,0.00016812,2]
[330658346,1719695440174,-797.56,0.00016812,2]
[330658348,1719695440183,-857.3,0.00016813,2]
[330658350,1719695440193,-57006.32,0.00016813,2]
[330658352,1719695440202,-6885.14,0.00016813,2]
[330658353,1719695440211,-9403.46,0.00016813,2]
[330658354,1719695440221,-10946.88,0.00016813,2]
[330658355,1719695440230,-4245.86,0.00016813,2]
[330658356,1719695440239,-549.13,0.00016813,2]
[330658357,1719695440249,-2747.29,0.00016813,2]
[330658358,1719695440258,-1661.17,0.00016813,2]
[330658359,1719695440267,-6452.34953466,0.00016813,2]
[330658360,1719695440279,-904.90046534,0.00016813,2]
[330658361,1719695440288,-651.15,0.00016813,2]
[330658362,1719695440297,-3532.16081762,0.00016814,7]
[330658369,1719695442931,-821.58,0.00016813,2]
[330658370,1719695442941,-249.44656866,0.00016814,7]
[330658371,1719695442952,-5550.34698003,0.00016814,7]
[330658372,1719695443033,-2445.13019853,0.00016814,7]
[330658373,1719695443044,-1024.37214939,0.00016814,7]
[330658374,1719695443055,-2910.46408717,0.00016814,7]
[330658375,1719695443067,-2492.5,0.00016814,7]
[330658376,1719695443078,-7431.809033,0.00016814,7]
[330658377,1719695443108,-3081.42166903,0.00016814,7]
[330658696,1719695446155,-14428.47629082,0.00016814,7]
[330658699,1719695446167,-3155.89549134,0.00016814,7]
[330658702,1719695446176,-500.0,0.00016814,2]
[330658705,1719695446186,-500.0,0.00016814,2]
[330658708,1719695446195,-587.89,0.00016814,2]
[330658709,1719695446204,-299.1770151,0.00016814,2]
[330658712,1719695446215,-200.8229849,0.00016814,2]
[330658714,1719695446224,-819.42,0.00016814,2]
[330658716,1719695446233,-500.0,0.00016814,2]
[330658718,1719695446242,-500.0,0.00016814,2]
[330658720,1719695446251,-500.0,0.00016814,2]
[330658722,1719695446260,-575.28094641,0.00016814,2]
[330658871,1719695632384,622.00534486,0.00014999,2]
[330658910,1719696632155,-522.1042197,0.00015874,2]
[330658911,1719696632165,-23201.21948599,0.00016255,2]
[330658912,1719696632211,-457.512,0.00016255,2]
[330659467,1719696638144,-2407.86414646,0.00016255,2]
[330659469,1719696638154,-2058.27184814,0.00016504,2]
[330659476,1719696638212,-3226.87104701,0.00016504,2]
[330659478,1719696638223,-190.74826844,0.00016614,2]
[330659481,1719696638233,-213.31192415,0.0001671,2]
[330659483,1719696638243,-9011.65,0.00016712,2]
[330659484,1719696638252,-504.32,0.00016712,2]
[330659487,1719696638262,-2632.82,0.00016712,2]
[330659488,1719696638271,-7050.7,0.00016712,2]
[330659490,1719696638280,-500.0,0.00016712,2]
[330659492,1719696638289,-787.34,0.00016712,2]
[330659494,1719696638299,-500.0,0.00016712,2]
[330659496,1719696638309,-500.0,0.00016712,2]
[330659498,1719696638319,-1946.31086633,0.00016713,2]
[330659732,1719696643445,-764.33,0.00016712,2]
[330659734,1719696643455,-563.39,0.00016712,2]
[330659736,1719696643465,-3005.13092211,0.00016713,2]
[330659738,1719696643477,-426.67064563,0.00016713,2]
[330659748,1719696643559,-31875.47092065,0.00016713,2]
[330659750,1719696643571,-17377.46664528,0.00016713,2]
[330659752,1719696643580,-6598.25,0.00016713,2]
[330659754,1719696643589,-10490.76,0.00016713,2]
[330659756,1719696643599,-4068.95,0.00016713,2]
[330659758,1719696643608,-1591.96,0.00016713,2]
[330659759,1719696643619,-624.02,0.00016713,2]
[330659762,1719696643631,-10165.7,0.00016713,2]
[330659764,1719696643640,-9176.86,0.00016713,2]
[330659766,1719696643650,-6876.42742605,0.00016714,2]
[330659768,1719696643659,-213.31192411,0.00016731,2]
[330659770,1719696643670,-213.31192411,0.00016751,2]
[330659772,1719696643679,-213.31192411,0.00016772,2]
[330659773,1719696643689,-213.31192411,0.00016792,2]
[330659775,1719696643698,-153.0,0.000168,2]
[330659777,1719696643707,-153.0,0.000168,2]
[330659779,1719696643717,-153.0,0.000168,2]
[330659780,1719696643726,-153.0,0.000168,2]
[330659781,1719696643736,-153.0,0.000168,2]
[330659782,1719696643746,-31217.21934381,0.0001681,7]
[330659783,1719696643755,-15312.8560166,0.0001681,7]
[330659784,1719696643765,-500.0,0.0001681,2]
[330659785,1719696643774,-3478.13,0.0001681,2]
[330659786,1719696643783,-500.0,0.0001681,2]
[330659787,1719696643793,-500.0,0.0001681,2]
[330659788,1719696643802,-1038.71,0.0001681,2]
[330659789,1719696643811,-873.89,0.0001681,2]
[330659790,1719696643822,-653.48,0.0001681,2]
[330659791,1719696643832,-500.0,0.0001681,2]
[330659792,1719696643842,-4085.12,0.0001681,2]
[330659793,1719696643852,-203.82757905,0.0001681,2]
[330659794,1719696643862,-500.0,0.0001681,2]
[330659795,1719696643872,-500.0,0.0001681,2]
[330659796,1719696643881,-773.88,0.0001681,2]
[330659797,1719696643891,-500.0,0.0001681,2]
[330659798,1719696643900,-645.74,0.0001681,2]
[330659799,1719696643910,-2347.22,0.0001681,2]
[330659800,1719696643920,-742.57,0.0001681,2]
[330659801,1719696643929,-159.89175344,0.0001681,2]
[330659802,1719696643938,-3560.25,0.0001681,2]
[330659803,1719696643947,-5020.14,0.0001681,2]
[330659804,1719696643957,-4021.83,0.0001681,2]
[330659805,1719696643966,-886.77,0.0001681,2]
[330659806,1719696643975,-857.52,0.0001681,2]
[330659807,1719696643984,-3824.35,0.0001681,2]
[330659808,1719696643994,-972.35,0.0001681,2]
[330659809,1719696644003,-12192.87,0.0001681,2]
[330659810,1719696644016,-843.09,0.0001681,2]
[330659811,1719696644026,-1032.48,0.0001681,2]
[330659812,1719696644035,-514.76491581,0.0001681,2]
[330659813,1719696644044,-500.0,0.0001681,2]
[330659814,1719696644055,-17127.15,0.0001681,2]
[330659815,1719696644065,-500.0,0.0001681,2]
[330659816,1719696644074,-1680.78,0.0001681,2]
[330659817,1719696644085,-1250.22,0.0001681,2]
[330659818,1719696644097,-1190.19,0.0001681,2]
[330659819,1719696644108,-511.5,0.0001681,2]
[330659820,1719696644117,-1064.74,0.0001681,2]
[330659821,1719696644126,-500.0,0.0001681,2]
[330659822,1719696644135,-1511.47,0.0001681,2]
[330659823,1719696644145,-765.94,0.0001681,2]
[330659824,1719696644155,-2416.53,0.0001681,2]
[330659825,1719696644164,-500.0,0.0001681,2]
[330659826,1719696644173,-2297.61,0.0001681,2]
[330659827,1719696644183,-500.0,0.0001681,2]
[330659828,1719696644192,-4580.93,0.0001681,2]
[330659829,1719696644201,-500.0,0.00016811,2]
[330659830,1719696644210,-500.0,0.00016811,2]